[Event "Titled Tuesday Blitz May 24 Early 2022"]
[White "Gallego Alcaraz, Andres Felipe"]
[Black "Hirneise, Jens"]
[WhiteFideId "4402669"]
[BlackFideId "24614734"]
[WhiteElo "2340"]
[BlackElo "2359"]
[Result "1-0"]
[Round "05"]
[TimeControl "180+1"]
[Date "2022.05.25"]
[WhiteClock "0:00:08"]
[BlackClock "0:00:03"]

1. d4 {[%clk 0:03:00]}  d5 {[%clk 0:02:58]} 2. c4 {[%clk 0:03:01]}  e6 {[%clk 0:02:57]} 3. Nf3 {[%clk 0:03:01]}  Nf6 {[%clk 0:02:56]} 4. g3 {[%clk 0:03:02]}  Bb4+ {[%clk 0:02:54]} 5. Bd2 {[%clk 0:03:01]}  Be7 {[%clk 0:02:51]} 6. Bg2 {[%clk 0:03:02]}  O-O {[%clk 0:02:51]} 7. O-O {[%clk 0:03:02]}  dxc4 {[%clk 0:02:51]} 8. Qc2 {[%clk 0:02:54]}  Bd7 {[%clk 0:02:45]} 9. Ne5 {[%clk 0:02:49]}  Nc6 {[%clk 0:02:38]} 10. Nxc6 {[%clk 0:02:47]}  Bxc6 {[%clk 0:02:35]} 11. Bxc6 {[%clk 0:02:48]}  bxc6 {[%clk 0:02:35]} 12. Qxc4 {[%clk 0:02:47]}  Qd5 {[%clk 0:02:28]} 13. Rc1 {[%clk 0:02:36]}  Rab8 {[%clk 0:02:16]} 14. b3 {[%clk 0:02:36]}  Rfc8 {[%clk 0:02:01]} 15. Nc3 {[%clk 0:02:03]}  Qxc4 {[%clk 0:01:55]} 16. bxc4 {[%clk 0:02:04]}  Ba3 {[%clk 0:01:55]} 17. Rc2 {[%clk 0:02:03]}  Bb2 {[%clk 0:01:49]} 18. Rd1 {[%clk 0:01:50]}  Bxc3 {[%clk 0:01:38]} 19. Bxc3 {[%clk 0:01:51]}  Ne4 {[%clk 0:01:36]} 20. Be1 {[%clk 0:01:50]}  Kf8 {[%clk 0:01:29]} 21. f3 {[%clk 0:01:48]}  Nf6 {[%clk 0:01:24]} 22. Kf2 {[%clk 0:01:41]}  Rb7 {[%clk 0:01:23]} 23. e4 {[%clk 0:01:28]}  Rcb8 {[%clk 0:01:23]} 24. e5 {[%clk 0:01:28]}  Nd7 {[%clk 0:01:22]} 25. f4 {[%clk 0:01:27]}  Rb2 {[%clk 0:01:13]} 26. Rdd2 {[%clk 0:01:23]}  Rxc2 {[%clk 0:01:06]} 27. Rxc2 {[%clk 0:01:24]}  Ke7 {[%clk 0:01:02]} 28. Ba5 {[%clk 0:01:23]}  Rb7 {[%clk 0:00:52]} 29. Ke3 {[%clk 0:01:23]}  Kd8 {[%clk 0:00:52]} 30. g4 {[%clk 0:01:08]}  Rb1 {[%clk 0:00:52]} 31. f5 {[%clk 0:01:05]}  Nb6 {[%clk 0:00:49]} 32. f6 {[%clk 0:00:25]}  gxf6 {[%clk 0:00:36]} 33. exf6 {[%clk 0:00:26]}  Kd7 {[%clk 0:00:33]} 34. Kf4 {[%clk 0:00:18]}  Rd1 {[%clk 0:00:20]} 35. Bxb6 {[%clk 0:00:10]}  axb6 {[%clk 0:00:14]} 36. Ke5 {[%clk 0:00:09]}  Rg1 {[%clk 0:00:08]} 37. Kf4 {[%clk 0:00:09]}  Rd1 {[%clk 0:00:07]} 38. Ke3 {[%clk 0:00:09]}  Rg1 {[%clk 0:00:05]} 39. Kf3 {[%clk 0:00:09]}  Rd1 {[%clk 0:00:05]} 40. Ke4 {[%clk 0:00:09]}  Rf1 {[%clk 0:00:04]} 41. g5 {[%clk 0:00:08]}  Rg1 {[%clk 0:00:04]} 42. Kf4 {[%clk 0:00:08]}  Rf1+ {[%clk 0:00:03]} 43. Kg4 {[%clk 0:00:08]} 1-0


[Site "https://www.chess.com"]

[Event "Titled Tuesday Blitz May 24 Early 2022"]
[White "Garcia Garcia, Alejandro"]
[Black "Miszler, Levente"]
[WhiteFideId "3516334"]
[BlackFideId "763276"]
[WhiteElo "2142"]
[BlackElo "1966"]
[Result "0-1"]
[Round "05"]
[TimeControl "180+1"]
[Date "2022.05.25"]
[WhiteClock "0:00:04"]
[BlackClock "0:00:05"]

1. Nf3 {[%clk 0:03:00]}  Nf6 {[%clk 0:02:56]} 2. g3 {[%clk 0:03:01]}  g6 {[%clk 0:02:55]} 3. Bg2 {[%clk 0:03:02]}  Bg7 {[%clk 0:02:55]} 4. O-O {[%clk 0:03:03]}  O-O {[%clk 0:02:56]} 5. c4 {[%clk 0:03:04]}  d6 {[%clk 0:02:54]} 6. Nc3 {[%clk 0:03:05]}  e5 {[%clk 0:02:54]} 7. Rb1 {[%clk 0:03:05]}  a5 {[%clk 0:02:53]} 8. a3 {[%clk 0:03:05]}  Nc6 {[%clk 0:02:53]} 9. b4 {[%clk 0:03:06]}  axb4 {[%clk 0:02:52]} 10. axb4 {[%clk 0:03:06]}  h6 {[%clk 0:02:48]} 11. b5 {[%clk 0:03:07]}  Ne7 {[%clk 0:02:48]} 12. d4 {[%clk 0:03:07]}  exd4 {[%clk 0:02:45]} 13. Nxd4 {[%clk 0:03:07]}  Re8 {[%clk 0:02:42]} 14. Bb2 {[%clk 0:03:05]}  Nf5 {[%clk 0:02:39]} 15. Nd5 {[%clk 0:03:00]}  Nxd5 {[%clk 0:02:18]} 16. cxd5 {[%clk 0:03:00]}  Nxd4 {[%clk 0:02:18]} 17. Bxd4 {[%clk 0:02:59]}  Bxd4 {[%clk 0:02:19]} 18. Qxd4 {[%clk 0:02:58]}  Rxe2 {[%clk 0:02:19]} 19. Rfe1 {[%clk 0:02:53]}  Qe7 {[%clk 0:02:14]} 20. Qc3 {[%clk 0:02:39]}  Raa2 {[%clk 0:02:10]} 21. Bf3 {[%clk 0:02:25]}  Rac2 {[%clk 0:01:18]} 22. Qa5 {[%clk 0:00:46]}  Rxe1+ {[%clk 0:00:44]} 23. Rxe1 {[%clk 0:00:45]}  Qf6 {[%clk 0:00:41]} 24. Kg2 {[%clk 0:00:37]}  Qd4 {[%clk 0:00:32]} 25. Rf1 {[%clk 0:00:30]}  Kg7 {[%clk 0:00:18]} 26. Qa8 {[%clk 0:00:29]}  Bf5 {[%clk 0:00:16]} 27. Qxb7 {[%clk 0:00:28]}  Qd3 {[%clk 0:00:14]} 28. b6 {[%clk 0:00:23]}  Bh3+ {[%clk 0:00:13]} 29. Kxh3 {[%clk 0:00:22]}  Qxf1+ {[%clk 0:00:13]} 30. Bg2 {[%clk 0:00:23]}  Qb5 {[%clk 0:00:12]} 31. Be4 {[%clk 0:00:15]}  Rc5 {[%clk 0:00:06]} 32. Qc8 {[%clk 0:00:11]}  Qxb6 {[%clk 0:00:06]} 33. Qd7 {[%clk 0:00:10]}  Qb2 {[%clk 0:00:05]} 34. f3 {[%clk 0:00:09]}  Qf6 {[%clk 0:00:05]} 35. Kg2 {[%clk 0:00:07]}  Qe5 {[%clk 0:00:04]} 36. h4 {[%clk 0:00:07]}  Rc1 {[%clk 0:00:03]} 37. Qb5 {[%clk 0:00:05]}  Qd4 {[%clk 0:00:03]} 38. h5 {[%clk 0:00:03]}  Qg1+ {[%clk 0:00:03]} 39. Kh3 {[%clk 0:00:03]}  Qh1+ {[%clk 0:00:04]} 40. Kg4 {[%clk 0:00:04]}  Qxh5+ {[%clk 0:00:04]} 41. Kf4 {[%clk 0:00:04]}  Qg5# {[%clk 0:00:05]} 0-1


[Site "https://www.chess.com"]

[Event "Titled Tuesday Blitz May 24 Early 2022"]
[White "Golizadeh, Asghar"]
[Black "Sokolovsky, Yahli"]
[WhiteFideId "12505269"]
[BlackFideId "2820242"]
[WhiteElo "2403"]
[BlackElo "1770"]
[Result "0-1"]
[Round "05"]
[TimeControl "180+1"]
[Date "2022.05.25"]
[WhiteClock "0:00:29"]
[BlackClock "0:00:09"]

1. e4 {[%clk 0:03:00]}  g6 {[%clk 0:02:52]} 2. d3 {[%clk 0:02:59]}  Bg7 {[%clk 0:02:52]} 3. Nf3 {[%clk 0:02:59]}  d6 {[%clk 0:02:52]} 4. g3 {[%clk 0:03:00]}  Nf6 {[%clk 0:02:48]} 5. Bg2 {[%clk 0:03:00]}  O-O {[%clk 0:02:49]} 6. O-O {[%clk 0:03:00]}  c5 {[%clk 0:02:49]} 7. Re1 {[%clk 0:02:57]}  Nc6 {[%clk 0:02:50]} 8. c3 {[%clk 0:02:54]}  e5 {[%clk 0:02:49]} 9. Na3 {[%clk 0:02:47]}  h6 {[%clk 0:02:48]} 10. h3 {[%clk 0:02:44]}  Be6 {[%clk 0:02:48]} 11. Nc2 {[%clk 0:02:44]}  d5 {[%clk 0:02:44]} 12. exd5 {[%clk 0:02:39]}  Nxd5 {[%clk 0:02:44]} 13. Ne3 {[%clk 0:02:39]}  Qc7 {[%clk 0:02:11]} 14. Qa4 {[%clk 0:02:05]}  Rad8 {[%clk 0:02:03]} 15. Nxd5 {[%clk 0:02:04]}  Bxd5 {[%clk 0:02:02]} 16. Be3 {[%clk 0:02:05]}  b6 {[%clk 0:02:00]} 17. Rad1 {[%clk 0:02:05]}  Ne7 {[%clk 0:01:48]} 18. d4 {[%clk 0:01:52]}  cxd4 {[%clk 0:01:20]} 19. cxd4 {[%clk 0:01:52]}  Qb7 {[%clk 0:01:10]} 20. Nh4 {[%clk 0:01:33]}  e4 {[%clk 0:00:52]} 21. Bf1 {[%clk 0:01:24]}  g5 {[%clk 0:00:48]} 22. Ng2 {[%clk 0:01:25]}  f5 {[%clk 0:00:44]} 23. Bd2 {[%clk 0:01:15]}  Kh8 {[%clk 0:00:31]} 24. Bb4 {[%clk 0:01:14]}  f4 {[%clk 0:00:26]} 25. Ba6 {[%clk 0:01:14]}  Qd7 {[%clk 0:00:20]} 26. Qxd7 {[%clk 0:01:13]}  Rxd7 {[%clk 0:00:21]} 27. Bb5 {[%clk 0:01:13]}  Rb7 {[%clk 0:00:15]} 28. Ba6 {[%clk 0:01:12]}  Rc7 {[%clk 0:00:15]} 29. Rc1 {[%clk 0:01:07]}  Rxc1 {[%clk 0:00:08]} 30. Rxc1 {[%clk 0:01:08]}  Rf7 {[%clk 0:00:05]} 31. gxf4 {[%clk 0:00:58]}  gxf4 {[%clk 0:00:05]} 32. Rc7 {[%clk 0:00:44]}  Ng6 {[%clk 0:00:05]} 33. Rc8+ {[%clk 0:00:39]}  Kh7 {[%clk 0:00:05]} 34. Bb5 {[%clk 0:00:40]}  e3 {[%clk 0:00:03]} 35. fxe3 {[%clk 0:00:39]}  f3 {[%clk 0:00:04]} 36. Be8 {[%clk 0:00:24]}  f2+ {[%clk 0:00:03]} 37. Kf1 {[%clk 0:00:25]}  Bxg2+ {[%clk 0:00:03]} 38. Ke2 {[%clk 0:00:21]}  f1=Q+ {[%clk 0:00:04]} 39. Kd2 {[%clk 0:00:22]}  Rf2+ {[%clk 0:00:04]} 40. Kc3 {[%clk 0:00:22]}  Qc1+ {[%clk 0:00:04]} 41. Kb3 {[%clk 0:00:23]}  Qxc8 {[%clk 0:00:04]} 42. Bb5 {[%clk 0:00:23]}  Qe6+ {[%clk 0:00:05]} 43. Bc4 {[%clk 0:00:24]}  Bd5 {[%clk 0:00:05]} 44. Kc3 {[%clk 0:00:24]}  Bxc4 {[%clk 0:00:06]} 45. b3 {[%clk 0:00:25]}  Qxe3+ {[%clk 0:00:06]} 46. Kxc4 {[%clk 0:00:25]}  Rc2+ {[%clk 0:00:07]} 47. Kb5 {[%clk 0:00:26]}  Qe8+ {[%clk 0:00:07]} 48. Ka6 {[%clk 0:00:26]}  Rxa2+ {[%clk 0:00:08]} 49. Kb7 {[%clk 0:00:26]}  Qd7+ {[%clk 0:00:08]} 50. Kb8 {[%clk 0:00:27]}  Be5+ {[%clk 0:00:08]} 51. Bd6 {[%clk 0:00:28]}  Bxd6+ {[%clk 0:00:08]} 52. Ka8 {[%clk 0:00:29]}  Qc8# {[%clk 0:00:09]} 0-1


[Site "https://www.chess.com"]

[Event "Titled Tuesday Blitz May 24 Early 2022"]
[White "Golubev, Mikhail"]
[Black "Preotu, Razvan"]
[WhiteFideId "14100983"]
[BlackFideId "2613280"]
[WhiteElo "2602"]
[BlackElo "2728"]
[Result "1-0"]
[Round "05"]
[TimeControl "180+1"]
[Date "2022.05.25"]
[WhiteClock "0:00:20"]
[BlackClock "0:00:03"]

1. e4 {[%clk 0:03:00]}  c5 {[%clk 0:03:00]} 2. Nf3 {[%clk 0:02:57]}  d6 {[%clk 0:03:00]} 3. d4 {[%clk 0:02:58]}  cxd4 {[%clk 0:03:01]} 4. Nxd4 {[%clk 0:02:58]}  Nf6 {[%clk 0:03:01]} 5. Nc3 {[%clk 0:02:58]}  a6 {[%clk 0:03:02]} 6. Bc4 {[%clk 0:02:58]}  e6 {[%clk 0:03:02]} 7. O-O {[%clk 0:02:58]}  b5 {[%clk 0:03:00]} 8. Bb3 {[%clk 0:02:57]}  Be7 {[%clk 0:03:00]} 9. f4 {[%clk 0:02:55]}  O-O {[%clk 0:02:56]} 10. e5 {[%clk 0:02:54]}  dxe5 {[%clk 0:02:48]} 11. fxe5 {[%clk 0:02:55]}  Nfd7 {[%clk 0:02:48]} 12. Be3 {[%clk 0:02:51]}  Nc5 {[%clk 0:02:17]} 13. Qg4 {[%clk 0:02:31]}  Kh8 {[%clk 0:01:26]} 14. Rf3 {[%clk 0:02:20]}  Nxb3 {[%clk 0:00:38]} 15. Nxb3 {[%clk 0:02:06]}  f5 {[%clk 0:00:38]} 16. exf6 {[%clk 0:01:53]}  Bxf6 {[%clk 0:00:32]} 17. Qe4 {[%clk 0:01:39]}  b4 {[%clk 0:00:21]} 18. Qxa8 {[%clk 0:01:32]}  bxc3 {[%clk 0:00:22]} 19. Qxb8 {[%clk 0:01:31]}  cxb2 {[%clk 0:00:23]} 20. Raf1 {[%clk 0:01:30]}  e5 {[%clk 0:00:18]} 21. Nc5 {[%clk 0:01:18]}  Bg4 {[%clk 0:00:19]} 22. Qxd8 {[%clk 0:00:49]}  Rxd8 {[%clk 0:00:19]} 23. Rxf6 {[%clk 0:00:44]}  gxf6 {[%clk 0:00:16]} 24. Nd3 {[%clk 0:00:43]}  Be2 {[%clk 0:00:15]} 25. Rb1 {[%clk 0:00:41]}  Bxd3 {[%clk 0:00:14]} 26. cxd3 {[%clk 0:00:40]}  Rxd3 {[%clk 0:00:13]} 27. Kf2 {[%clk 0:00:40]}  f5 {[%clk 0:00:11]} 28. g3 {[%clk 0:00:35]}  Ra3 {[%clk 0:00:06]} 29. Rxb2 {[%clk 0:00:34]}  Kg7 {[%clk 0:00:07]} 30. Bc5 {[%clk 0:00:30]}  Ra4 {[%clk 0:00:06]} 31. a3 {[%clk 0:00:27]}  h5 {[%clk 0:00:04]} 32. Rb6 {[%clk 0:00:26]}  h4 {[%clk 0:00:04]} 33. Bd6 {[%clk 0:00:24]}  hxg3+ {[%clk 0:00:03]} 34. hxg3 {[%clk 0:00:24]}  Kf6 {[%clk 0:00:02]} 35. Bc7+ {[%clk 0:00:22]}  Kg5 {[%clk 0:00:02]} 36. Bxe5 {[%clk 0:00:22]}  Rxa3 {[%clk 0:00:03]} 37. Bf4+ {[%clk 0:00:21]}  Kh5 {[%clk 0:00:03]} 38. Rh6+ {[%clk 0:00:20]}  Kg4 {[%clk 0:00:03]} 39. Rh4# {[%clk 0:00:20]} 1-0


[Site "https://www.chess.com"]

[Event "Titled Tuesday Blitz May 24 Early 2022"]
[White "Guzman, Christopher"]
[Black "Gatterer, Florian"]
[WhiteFideId "6405096"]
[BlackFideId "811688"]
[WhiteElo "2244"]
[BlackElo "2218"]
[Result "1-0"]
[Round "05"]
[TimeControl "180+1"]
[Date "2022.05.25"]
[WhiteClock "0:01:44"]
[BlackClock "0:00:02"]

1. e4 {[%clk 0:03:00]}  c5 {[%clk 0:02:59]} 2. Nf3 {[%clk 0:02:59]}  Nc6 {[%clk 0:02:59]} 3. d4 {[%clk 0:02:59]}  cxd4 {[%clk 0:03:00]} 4. Nxd4 {[%clk 0:03:00]}  g6 {[%clk 0:03:00]} 5. c4 {[%clk 0:03:00]}  Bg7 {[%clk 0:02:58]} 6. Be3 {[%clk 0:02:59]}  Qb6 {[%clk 0:02:58]} 7. Nb3 {[%clk 0:02:53]}  Qd8 {[%clk 0:02:57]} 8. Qd2 {[%clk 0:02:53]}  Nf6 {[%clk 0:02:54]} 9. Nc3 {[%clk 0:02:51]}  Ng4 {[%clk 0:02:53]} 10. Bf4 {[%clk 0:02:50]}  O-O {[%clk 0:02:44]} 11. h3 {[%clk 0:02:49]}  Nge5 {[%clk 0:02:44]} 12. Be2 {[%clk 0:02:49]}  d6 {[%clk 0:02:40]} 13. O-O {[%clk 0:02:47]}  Be6 {[%clk 0:02:39]} 14. Nd5 {[%clk 0:02:46]}  a5 {[%clk 0:02:33]} 15. Rac1 {[%clk 0:02:44]}  a4 {[%clk 0:02:32]} 16. Na1 {[%clk 0:02:44]}  Nd4 {[%clk 0:02:25]} 17. Bd3 {[%clk 0:02:34]}  Re8 {[%clk 0:01:57]} 18. Kh1 {[%clk 0:02:30]}  Nxd3 {[%clk 0:01:54]} 19. Qxd3 {[%clk 0:02:29]}  Nc6 {[%clk 0:01:49]} 20. Be3 {[%clk 0:02:29]}  Bxb2 {[%clk 0:01:40]} 21. Rb1 {[%clk 0:02:28]}  Bxd5 {[%clk 0:01:28]} 22. Rxb2 {[%clk 0:02:22]}  Be6 {[%clk 0:01:25]} 23. Rxb7 {[%clk 0:02:17]}  Ne5 {[%clk 0:01:23]} 24. Qd1 {[%clk 0:02:17]}  Nxc4 {[%clk 0:01:18]} 25. Bd4 {[%clk 0:02:16]}  Qc8 {[%clk 0:01:13]} 26. Rb4 {[%clk 0:02:13]}  Qc6 {[%clk 0:01:11]} 27. Re1 {[%clk 0:02:09]}  Rec8 {[%clk 0:01:01]} 28. Nc2 {[%clk 0:02:04]}  Ne5 {[%clk 0:00:33]} 29. Ne3 {[%clk 0:02:03]}  Bxa2 {[%clk 0:00:31]} 30. f4 {[%clk 0:01:59]}  Nc4 {[%clk 0:00:27]} 31. Nd5 {[%clk 0:01:59]}  Qd7 {[%clk 0:00:19]} 32. Ba1 {[%clk 0:01:56]}  Bb3 {[%clk 0:00:19]} 33. Qd4 {[%clk 0:01:55]}  f6 {[%clk 0:00:20]} 34. Nxf6+ {[%clk 0:01:53]}  exf6 {[%clk 0:00:18]} 35. Qxf6 {[%clk 0:01:54]}  Rab8 {[%clk 0:00:09]} 36. Rxb8 {[%clk 0:01:52]}  Rxb8 {[%clk 0:00:08]} 37. Qh8+ {[%clk 0:01:52]}  Kf7 {[%clk 0:00:09]} 38. Qxh7+ {[%clk 0:01:50]}  Ke8 {[%clk 0:00:08]} 39. Qg8+ {[%clk 0:01:49]}  Ke7 {[%clk 0:00:09]} 40. Qxb8 {[%clk 0:01:48]}  Qc6 {[%clk 0:00:04]} 41. e5 {[%clk 0:01:47]}  dxe5 {[%clk 0:00:02]} 42. Qa7+ {[%clk 0:01:44]}  Ke6 {[%clk 0:00:02]} 43. Bxe5 {[%clk 0:01:44]} 1-0


[Site "https://www.chess.com"]

[Event "Titled Tuesday Blitz May 24 Early 2022"]
[White "Hakemi, Arman"]
[Black "Drygalov, Sergey"]
[WhiteFideId "22520805"]
[BlackFideId "24171743"]
[WhiteElo "2115"]
[BlackElo "2514"]
[Result "1-0"]
[Round "05"]
[TimeControl "180+1"]
[Date "2022.05.24"]
[WhiteClock "0:00:01"]
[BlackClock "0:00:14"]

1. d4 {[%clk 0:03:00]}  Nf6 {[%clk 0:02:59]} 2. Nf3 {[%clk 0:03:00]}  d5 {[%clk 0:02:59]} 3. g3 {[%clk 0:03:01]}  e6 {[%clk 0:02:58]} 4. Bg2 {[%clk 0:03:01]}  b5 {[%clk 0:02:59]} 5. a4 {[%clk 0:03:01]}  b4 {[%clk 0:02:59]} 6. c4 {[%clk 0:03:02]}  Bb7 {[%clk 0:02:56]} 7. O-O {[%clk 0:02:58]}  c5 {[%clk 0:02:55]} 8. cxd5 {[%clk 0:02:56]}  Bxd5 {[%clk 0:02:52]} 9. b3 {[%clk 0:02:36]}  Nbd7 {[%clk 0:02:51]} 10. Bb2 {[%clk 0:02:35]}  Be7 {[%clk 0:02:52]} 11. Nbd2 {[%clk 0:02:35]}  O-O {[%clk 0:02:51]} 12. Rc1 {[%clk 0:02:36]}  Rc8 {[%clk 0:02:49]} 13. Nc4 {[%clk 0:02:36]}  cxd4 {[%clk 0:02:44]} 14. Nxd4 {[%clk 0:02:36]}  Nc5 {[%clk 0:02:44]} 15. Bxd5 {[%clk 0:02:28]}  Qxd5 {[%clk 0:02:45]} 16. Ne3 {[%clk 0:02:22]}  Qb7 {[%clk 0:02:43]} 17. Ba1 {[%clk 0:02:13]}  Rfd8 {[%clk 0:02:39]} 18. Qe1 {[%clk 0:02:12]}  Bf8 {[%clk 0:02:35]} 19. Rc4 {[%clk 0:02:06]}  Nfe4 {[%clk 0:02:32]} 20. Rxb4 {[%clk 0:02:04]}  Qa8 {[%clk 0:02:23]} 21. Rc4 {[%clk 0:02:04]}  e5 {[%clk 0:02:22]} 22. Nb5 {[%clk 0:01:59]}  Nxb3 {[%clk 0:02:21]} 23. Bxe5 {[%clk 0:01:54]}  Nbd2 {[%clk 0:02:19]} 24. Rxc8 {[%clk 0:01:54]}  Rxc8 {[%clk 0:02:11]} 25. f3 {[%clk 0:01:23]}  Bc5 {[%clk 0:02:08]} 26. Bd4 {[%clk 0:01:10]}  Bxd4 {[%clk 0:02:07]} 27. Nxd4 {[%clk 0:01:10]}  Nxf1 {[%clk 0:02:08]} 28. Kxf1 {[%clk 0:01:08]}  Nf6 {[%clk 0:02:04]} 29. Ndf5 {[%clk 0:01:04]}  Re8 {[%clk 0:01:59]} 30. Qd2 {[%clk 0:01:02]}  Qd8 {[%clk 0:01:58]} 31. Qc3 {[%clk 0:01:01]}  Re6 {[%clk 0:01:26]} 32. Kf2 {[%clk 0:00:54]}  h5 {[%clk 0:01:25]} 33. Qc5 {[%clk 0:00:43]}  Qb6 {[%clk 0:01:17]} 34. Qc8+ {[%clk 0:00:42]}  Re8 {[%clk 0:01:17]} 35. Qc3 {[%clk 0:00:38]}  g6 {[%clk 0:01:09]} 36. a5 {[%clk 0:00:24]}  Qe6 {[%clk 0:01:01]} 37. Nd4 {[%clk 0:00:22]}  Qd7 {[%clk 0:00:52]} 38. Qc4 {[%clk 0:00:15]}  Qe7 {[%clk 0:00:48]} 39. Qd3 {[%clk 0:00:14]}  Qc5 {[%clk 0:00:47]} 40. Nb3 {[%clk 0:00:12]}  Qb4 {[%clk 0:00:42]} 41. Nc2 {[%clk 0:00:12]}  Qe7 {[%clk 0:00:41]} 42. e3 {[%clk 0:00:10]}  Nd7 {[%clk 0:00:41]} 43. Ncd4 {[%clk 0:00:10]}  Ne5 {[%clk 0:00:41]} 44. Qc3 {[%clk 0:00:10]}  Qb7 {[%clk 0:00:36]} 45. Nc5 {[%clk 0:00:08]}  Qd5 {[%clk 0:00:37]} 46. Nd3 {[%clk 0:00:03]}  Qa2+ {[%clk 0:00:34]} 47. Ne2 {[%clk 0:00:02]}  Nxd3+ {[%clk 0:00:30]} 48. Qxd3 {[%clk 0:00:02]}  Qxa5 {[%clk 0:00:30]} 49. Qd7 {[%clk 0:00:01]}  Rd8 {[%clk 0:00:27]} 50. Qe7 {[%clk 0:00:02]}  Qb6 {[%clk 0:00:20]} 51. f4 {[%clk 0:00:01]}  a5 {[%clk 0:00:14]} 52. Nd4 {[%clk 0:00:01]} 1-0


[Site "https://www.chess.com"]

[Event "Titled Tuesday Blitz May 24 Early 2022"]
[White "Hambleton, Aman"]
[Black "Kostiukov, Alexandr"]
[WhiteFideId "2606577"]
[BlackFideId "14108100"]
[WhiteElo "2552"]
[BlackElo "2202"]
[Result "1-0"]
[Round "05"]
[TimeControl "180+1"]
[Date "2022.05.25"]
[WhiteClock "0:00:03"]
[BlackClock "0:00:02"]

1. d4 {[%clk 0:03:00]}  g6 {[%clk 0:02:52]} 2. c4 {[%clk 0:03:01]}  Bg7 {[%clk 0:02:51]} 3. e4 {[%clk 0:03:01]}  d6 {[%clk 0:02:51]} 4. Nc3 {[%clk 0:03:02]}  e5 {[%clk 0:02:51]} 5. d5 {[%clk 0:03:02]}  f5 {[%clk 0:02:51]} 6. Bd3 {[%clk 0:03:02]}  Nf6 {[%clk 0:02:49]} 7. f3 {[%clk 0:03:03]}  O-O {[%clk 0:02:49]} 8. Nge2 {[%clk 0:03:03]}  a5 {[%clk 0:02:48]} 9. Be3 {[%clk 0:03:03]}  Na6 {[%clk 0:02:46]} 10. Qd2 {[%clk 0:03:03]}  Bd7 {[%clk 0:02:44]} 11. h3 {[%clk 0:03:03]}  Qe7 {[%clk 0:02:34]} 12. g4 {[%clk 0:03:00]}  f4 {[%clk 0:02:31]} 13. Bf2 {[%clk 0:03:01]}  h6 {[%clk 0:02:29]} 14. O-O-O {[%clk 0:02:54]}  b6 {[%clk 0:02:27]} 15. b3 {[%clk 0:02:39]}  Nc5 {[%clk 0:02:24]} 16. Bc2 {[%clk 0:02:39]}  Rfb8 {[%clk 0:02:18]} 17. a3 {[%clk 0:01:54]}  Ne8 {[%clk 0:02:11]} 18. b4 {[%clk 0:01:45]}  axb4 {[%clk 0:02:10]} 19. axb4 {[%clk 0:01:46]}  Na4 {[%clk 0:02:09]} 20. Nxa4 {[%clk 0:01:33]}  Bxa4 {[%clk 0:02:10]} 21. Kb2 {[%clk 0:01:31]}  Bxc2 {[%clk 0:01:37]} 22. Qxc2 {[%clk 0:01:31]}  Qd7 {[%clk 0:01:31]} 23. Ra1 {[%clk 0:01:24]}  Bf8 {[%clk 0:01:29]} 24. Nc3 {[%clk 0:01:15]}  Qc8 {[%clk 0:01:22]} 25. Nb5 {[%clk 0:01:12]}  Rxa1 {[%clk 0:01:20]} 26. Rxa1 {[%clk 0:01:13]}  Ra8 {[%clk 0:01:20]} 27. Qb3 {[%clk 0:00:22]}  Kg7 {[%clk 0:01:12]} 28. Rxa8 {[%clk 0:00:15]}  Qxa8 {[%clk 0:01:11]} 29. Qa3 {[%clk 0:00:16]}  Qxa3+ {[%clk 0:01:09]} 30. Kxa3 {[%clk 0:00:16]}  Kf7 {[%clk 0:01:08]} 31. Ka4 {[%clk 0:00:17]}  Ke7 {[%clk 0:01:01]} 32. c5 {[%clk 0:00:15]}  bxc5 {[%clk 0:00:58]} 33. bxc5 {[%clk 0:00:16]}  Kd7 {[%clk 0:00:56]} 34. c6+ {[%clk 0:00:03]}  Kc8 {[%clk 0:00:52]} 35. Ka5 {[%clk 0:00:03]}  Kb8 {[%clk 0:00:42]} 36. Ka6 {[%clk 0:00:03]}  Be7 {[%clk 0:00:40]} 37. Ba7+ {[%clk 0:00:02]}  Ka8 {[%clk 0:00:39]} 38. Bb6 {[%clk 0:00:02]}  Kb8 {[%clk 0:00:36]} 39. Ba5 {[%clk 0:00:02]}  Bf8 {[%clk 0:00:31]} 40. Be1 {[%clk 0:00:02]}  Be7 {[%clk 0:00:30]} 41. Bf2 {[%clk 0:00:03]}  Bd8 {[%clk 0:00:27]} 42. Na3 {[%clk 0:00:02]}  Ka8 {[%clk 0:00:23]} 43. Nc2 {[%clk 0:00:02]}  Kb8 {[%clk 0:00:22]} 44. Nb4 {[%clk 0:00:03]}  Ka8 {[%clk 0:00:22]} 45. Kb5 {[%clk 0:00:03]}  Kb8 {[%clk 0:00:22]} 46. Na6+ {[%clk 0:00:03]}  Ka8 {[%clk 0:00:21]} 47. Kc4 {[%clk 0:00:03]}  h5 {[%clk 0:00:15]} 48. gxh5 {[%clk 0:00:02]}  gxh5 {[%clk 0:00:16]} 49. Nb4 {[%clk 0:00:02]}  Kb8 {[%clk 0:00:16]} 50. Kb5 {[%clk 0:00:02]}  Ka8 {[%clk 0:00:16]} 51. Nd3 {[%clk 0:00:02]}  Kb8 {[%clk 0:00:16]} 52. Ka6 {[%clk 0:00:03]}  Ka8 {[%clk 0:00:16]} 53. Ne1 {[%clk 0:00:03]}  Kb8 {[%clk 0:00:12]} 54. Ng2 {[%clk 0:00:03]}  Ng7 {[%clk 0:00:09]} 55. Ba7+ {[%clk 0:00:03]}  Kc8 {[%clk 0:00:08]} 56. Bf2 {[%clk 0:00:03]}  Kb8 {[%clk 0:00:08]} 57. Be1 {[%clk 0:00:03]}  Kc8 {[%clk 0:00:08]} 58. Ka7 {[%clk 0:00:03]}  Be7 {[%clk 0:00:09]} 59. Ka8 {[%clk 0:00:03]}  Bd8 {[%clk 0:00:09]} 60. Bf2 {[%clk 0:00:03]}  Ne8 {[%clk 0:00:09]} 61. Ne1 {[%clk 0:00:03]}  Ng7 {[%clk 0:00:08]} 62. Nd3 {[%clk 0:00:03]}  Ne8 {[%clk 0:00:08]} 63. Nb2 {[%clk 0:00:04]}  Nf6 {[%clk 0:00:08]} 64. Nc4 {[%clk 0:00:05]}  Nh7 {[%clk 0:00:08]} 65. h4 {[%clk 0:00:02]}  Nf8 {[%clk 0:00:07]} 66. Na3 {[%clk 0:00:02]}  Ng6 {[%clk 0:00:06]} 67. Nb5 {[%clk 0:00:03]}  Bxh4 {[%clk 0:00:06]} 68. Na7+ {[%clk 0:00:03]}  Kd8 {[%clk 0:00:06]} 69. Bg1 {[%clk 0:00:03]}  Bg3 {[%clk 0:00:06]} 70. Kb7 {[%clk 0:00:04]}  h4 {[%clk 0:00:06]} 71. Bb6 {[%clk 0:00:04]}  h3 {[%clk 0:00:03]} 72. Bxc7+ {[%clk 0:00:04]}  Ke8 {[%clk 0:00:02]} 73. Bxd6 {[%clk 0:00:04]}  h2 {[%clk 0:00:02]} 74. c7 {[%clk 0:00:04]}  h1=Q {[%clk 0:00:02]} 75. c8=Q+ {[%clk 0:00:05]}  Kf7 {[%clk 0:00:02]} 76. Qe6+ {[%clk 0:00:04]}  Kg7 {[%clk 0:00:02]} 77. Bxe5+ {[%clk 0:00:04]}  Nxe5 {[%clk 0:00:02]} 78. Qxe5+ {[%clk 0:00:05]}  Kg6 {[%clk 0:00:02]} 79. Qf5+ {[%clk 0:00:05]}  Kh6 {[%clk 0:00:02]} 80. Qf6+ {[%clk 0:00:04]}  Kh7 {[%clk 0:00:02]} 81. Qf7+ {[%clk 0:00:04]}  Kh6 {[%clk 0:00:03]} 82. Qe6+ {[%clk 0:00:04]}  Kh7 {[%clk 0:00:03]} 83. Qd7+ {[%clk 0:00:04]}  Kg8 {[%clk 0:00:03]} 84. d6 {[%clk 0:00:02]}  Qb1+ {[%clk 0:00:02]} 85. Nb5 {[%clk 0:00:02]}  Qb4 {[%clk 0:00:02]} 86. Qe8+ {[%clk 0:00:01]}  Kg7 {[%clk 0:00:02]} 87. Qe7+ {[%clk 0:00:02]}  Kg6 {[%clk 0:00:02]} 88. Qe6+ {[%clk 0:00:02]}  Kg5 {[%clk 0:00:02]} 89. Qd5+ {[%clk 0:00:02]}  Kh4 {[%clk 0:00:03]} 90. d7 {[%clk 0:00:03]}  Qe7 {[%clk 0:00:02]} 91. Kc8 {[%clk 0:00:03]} 1-0


[Site "https://www.chess.com"]